bitfinex-derivatives/quotes_BTCF0:USTF0_20241231
["timestamp","ask_amount","ask_price","bid_price","bid_amount"]
[1735669467329,0.3608,93965.0,93945.0,0.08717061]
[1735669467526,0.3608,93965.0,93964.0,0.053289]
[1735669467912,0.01369419,93965.0,93964.0,0.053289]
[1735669468120,0.0015969,93969.0,93968.0,0.053286]
[1735669469512,0.0055969,93969.0,93968.0,0.053286]
[1735669471523,0.0548829,93969.0,93968.0,0.053286]
[1735669471822,0.0558829,93969.0,93968.0,0.053286]
[1735669472022,0.0568829,93969.0,93968.0,0.053286]
[1735669472228,0.0558829,93969.0,93968.0,0.053286]
[1735669472528,0.0578829,93969.0,93968.0,0.053286]
[1735669472717,0.053289,93964.0,93963.0,0.053288]
[1735669472925,0.01929166,93969.0,93958.0,0.053292]
[1735669473121,0.414091,93959.0,93958.0,0.053292]
[1735669473821,0.3608,93967.0,93958.0,0.053292]
[1735669474028,0.3608,93959.0,93934.0,0.3608]
[1735669474263,0.3608,93949.0,93948.0,0.053298]
[1735669475711,0.001,93949.0,93948.0,0.060298]
[1735669476105,0.001,93949.0,93948.0,0.053298]
[1735669476397,0.3608,93959.0,93952.0,0.053295]
[1735669476398,0.053295,93953.0,93952.0,0.053295]
[1735669478098,0.053295,93953.0,93952.0,0.057295]
[1735669478298,0.053293,93958.0,93957.0,0.053292]
[1735669478893,0.01495795,93959.0,93958.0,0.053292]
[1735669479095,0.01407794,93959.0,93958.0,0.053292]
[1735669479293,0.053286,93968.0,93967.0,0.053287]
[1735669479496,0.10376576,93967.0,93960.0,0.053291]
[1735669479709,0.10376576,93967.0,93966.0,0.053287]
[1735669480604,0.10376576,93967.0,93961.0,0.0391]
[1735669480605,0.3623969,93969.0,93968.0,0.053286]
[1735669480998,0.01513269,93969.0,93968.0,0.053286]
[1735669481302,0.22236714,93973.0,93972.0,0.053284]
[1735669481906,0.22236714,93980.0,93979.0,0.05328]
[1735669482998,0.42869783,93987.0,93986.0,0.053276]
[1735669483196,0.42777783,93987.0,93986.0,0.053276]
[1735669483798,0.37450183,93987.0,93986.0,0.053276]
[1735669484504,0.37450183,93987.0,93972.0,1.553884]
[1735669484505,0.67450183,93987.0,93972.0,1.5006]
[1735669484710,0.3608,93973.0,93950.0,0.08717061]
[1735669485010,0.3608,93958.0,93951.0,0.053296]
[1735669485207,0.053297,93952.0,93951.0,0.053296]
[1735669485699,0.053297,93949.0,93948.0,0.08717061]
[1735669486101,0.053297,93949.0,93948.0,0.14046861]
[1735669487406,0.053297,93949.0,93948.0,0.053298]
[1735669487609,0.053294,93954.0,93953.0,0.053293]
[1735669487907,0.37450084,93958.0,93945.0,0.0406]
[1735669487908,0.37554085,93958.0,93945.0,0.0406]
[1735669488108,0.3608,93978.0,93948.0,0.09317061]
[1735669488406,0.414086,93969.0,93968.0,0.053286]
[1735669488614,0.42786845,93969.0,93968.0,0.053286]
[1735669488805,0.37458245,93969.0,93968.0,0.053286]
[1735669489312,0.47956091,93969.0,93968.0,0.053286]
[1735669489812,0.11876091,93969.0,93968.0,0.053286]
[1735669490114,0.17204691,93969.0,93968.0,0.053286]
[1735669490299,0.06806845,93969.0,93968.0,0.053286]
[1735669491009,0.07106845,93969.0,93968.0,0.053286]
[1735669491413,0.43386845,93969.0,93968.0,0.053286]
[1735669491614,0.053289,93964.0,93952.0,0.3608]
[1735669491802,0.053289,93964.0,93963.0,0.053289]
[1735669493610,0.37962246,93969.0,93952.0,0.3608]
[1735669493809,0.10398637,93964.0,93963.0,0.053289]
[1735669494007,0.10498637,93964.0,93963.0,0.053289]
[1735669494709,0.001,93964.0,93963.0,0.053289]
[1735669494909,0.10398637,93965.0,93964.0,0.053289]
[1735669495705,0.04308637,93965.0,93964.0,0.053289]
[1735669496022,0.04308637,93965.0,93964.0,1.553289]
[1735669496211,0.22236714,93974.0,93973.0,0.053283]
[1735669496409,0.28590061,93977.0,93976.0,0.053282]
[1735669497917,0.01,93977.0,93976.0,0.054282]
[1735669498414,0.005,93977.0,93976.0,0.053282]
[1735669499007,0.058281,93977.0,93976.0,0.053282]
[1735669499712,0.056281,93977.0,93976.0,0.053282]
[1735669499910,0.053283,93974.0,93961.0,0.05329]
[1735669500108,0.053291,93963.0,93962.0,0.053288]
[1735669500314,0.3608,93971.0,93967.0,0.053285]
[1735669500505,0.3608,93971.0,93961.0,0.08717061]
[1735669500706,0.053288,93966.0,93965.0,0.053287]
[1735669503213,0.053288,93966.0,93965.0,0.057287]
[1735669504018,0.0383,93970.0,93969.0,0.053286]
[1735669504224,0.091585,93970.0,93969.0,0.053286]
[1735669504411,0.0383,93970.0,93969.0,0.053286]
[1735669504618,0.053284,93973.0,93972.0,0.053284]
[1735669504807,0.22323345,93986.0,93981.0,0.053279]
[1735669505012,0.37442127,93982.0,93981.0,0.053279]
[1735669505213,0.01362127,93982.0,93981.0,0.053279]
[1735669505517,0.22323345,93986.0,93985.0,0.053277]
[1735669505712,0.0015965,93988.0,93987.0,0.053275]
[1735669507422,0.01522607,93988.0,93987.0,0.053275]
[1735669507622,0.0015965,93988.0,93987.0,0.053275]
[1735669507825,0.0085965,93988.0,93987.0,0.054275]
[1735669508424,0.0125965,93988.0,93987.0,0.054275]
[1735669509015,0.011,93988.0,93987.0,0.054275]
[1735669510822,0.01471938,93990.0,93987.0,0.001]
[1735669511010,0.01367937,93990.0,93989.0,0.053274]
[1735669511217,0.053273,93992.0,93991.0,0.053273]
[1735669511730,0.053273,93992.0,93987.0,0.001]
[1735669511731,0.05327,93997.0,93996.0,0.053268]
[1735669512211,0.01356102,94000.0,93999.0,0.053269]
[1735669512415,0.053268,94000.0,93999.0,0.053269]
[1735669514023,0.41737662,94000.0,93999.0,0.054269]
[1735669515120,0.42337662,94000.0,93999.0,0.055269]
[1735669517532,0.42337662,94000.0,93999.0,0.002]
[1735669518739,0.67010862,94000.0,93962.0,0.3608]
[1735669518919,0.67010862,94000.0,93967.0,0.053286]
[1735669518920,0.053287,93968.0,93967.0,0.053286]
[1735669520718,0.053287,93968.0,93967.0,0.057286]
[1735669521921,0.053287,93968.0,93967.0,0.004]
[1735669522627,0.055287,93968.0,93967.0,0.004]
[1735669523032,0.053289,93964.0,93963.0,0.053289]
[1735669523433,0.002,93968.0,93967.0,0.053287]
[1735669523624,0.004,93968.0,93967.0,0.053287]
[1735669524017,0.01671127,93968.0,93967.0,0.053287]
[1735669524221,0.053286,93968.0,93967.0,0.053287]
[1735669524618,0.053286,93968.0,93967.0,1.553287]
[1735669524829,0.053286,93968.0,93967.0,0.003]
[1735669526322,0.58494041,93972.0,93965.0,0.053288]
[1735669526519,0.053286,93968.0,93967.0,0.001]
[1735669526938,0.055286,93968.0,93967.0,0.053287]
[1735669527435,0.055286,93968.0,93967.0,0.414087]
[1735669527436,0.10285895,93968.0,93967.0,0.414087]
[1735669528135,0.10185895,93968.0,93967.0,0.414087]
[1735669528322,0.10285895,93968.0,93967.0,0.414087]
[1735669528519,0.002,93968.0,93967.0,0.414087]
[1735669528723,0.002,93968.0,93967.0,1.914087]
[1735669529427,0.001,93968.0,93967.0,1.914087]
[1735669529628,0.001,93968.0,93967.0,1.915087]
[1735669530131,0.25512394,93969.0,93968.0,0.053286]
[1735669530739,0.26762071,93972.0,93971.0,0.053285]
[1735669531134,0.25512394,93972.0,93971.0,0.053285]
[1735669531334,0.19642394,93972.0,93971.0,0.414085]
[1735669531532,0.28590061,93979.0,93978.0,0.053281]
[1735669531734,0.1725308,93979.0,93978.0,0.414081]
[1735669532434,0.22311681,93981.0,93978.0,0.414081]
[1735669532637,0.22311681,93981.0,93980.0,0.053279]
[1735669533543,0.01294329,93990.0,93989.0,0.053274]
[1735669533740,0.3623961,94010.0,93996.0,0.05327]
[1735669533943,0.053268,94001.0,93999.0,0.053269]
[1735669534535,0.04933868,94000.0,93999.0,0.053269]
[1735669534739,0.04933868,94000.0,93999.0,0.414069]
[1735669535241,0.01263868,94000.0,93999.0,0.414069]
[1735669535439,0.053264,94007.0,93999.0,0.414069]
[1735669535940,0.3623961,94010.0,93999.0,0.3608]
[1735669536238,0.42828153,94010.0,93999.0,0.3608]
[1735669536444,0.006,94000.0,93999.0,0.415068]
[1735669536639,0.015,94000.0,93999.0,0.416068]
[1735669537434,0.37501853,94010.0,93999.0,0.416068]
[1735669537435,0.39001853,94010.0,93999.0,0.416068]
[1735669537639,0.39001853,94010.0,94000.0,0.01328261]
[1735669537838,0.38101853,94010.0,94009.0,0.053263]
[1735669538039,0.02021853,94010.0,94009.0,0.053263]
[1735669538645,0.02921853,94010.0,94009.0,0.053263]
[1735669539241,0.02321853,94010.0,94009.0,0.053263]
[1735669540045,0.03221853,94010.0,94009.0,0.054263]
[1735669540345,0.03221853,94010.0,94009.0,0.055263]
[1735669541049,0.0195961,94010.0,94009.0,0.055263]
[1735669542147,0.36192001,94040.0,94009.0,0.055263]
[1735669542148,0.01265415,94023.0,94009.0,0.002]
[1735669542443,0.0337,94030.0,94029.0,0.053252]
[1735669543043,0.34044474,94048.0,94022.0,0.3608]
[1735669543243,0.31766734,94048.0,94047.0,0.053241]
[1735669543548,0.09879039,94048.0,94047.0,0.053241]
[1735669544542,0.3608,94049.0,94038.0,1.50121461]
[1735669544747,0.3608,94049.0,94048.0,0.053241]
[1735669545338,0.37369409,94049.0,94048.0,0.053241]
[1735669547145,0.37669409,94049.0,94048.0,0.053241]
[1735669547749,0.003,94049.0,94048.0,0.414041]
[1735669547950,0.31772843,94065.0,94060.0,0.053234]
[1735669548146,0.31772843,94065.0,94064.0,0.053232]
[1735669548839,0.3608,94074.0,94064.0,0.053232]
[1735669549241,0.3608,94074.0,94064.0,0.08717061]
[1735669549549,0.053229,94069.0,94066.0,0.05323]
[1735669549744,0.0338,94068.0,94064.0,0.08717061]
[1735669549955,0.3608,94065.0,94064.0,0.053232]
[1735669550142,0.0338,94068.0,94056.0,0.3608]
[1735669550350,0.3608,94065.0,94064.0,0.054232]
[1735669550550,0.0338,94068.0,94064.0,0.054232]
[1735669550750,0.0338,94068.0,94064.0,0.053232]
[1735669551056,0.004,94065.0,94064.0,0.054232]
[1735669552556,0.004,94068.0,94064.0,0.001]
[1735669553151,0.004,94068.0,94064.0,0.3618]
[1735669553451,0.004,94065.0,94064.0,0.414032]
[1735669553650,0.004,94065.0,94064.0,0.415032]
[1735669554163,0.3608,94084.0,94083.0,0.032283]
[1735669554456,0.37358788,94084.0,94083.0,0.032283]
[1735669555553,0.3608,94084.0,94083.0,0.032283]
[1735669556249,0.00104001,94094.0,94080.0,0.01290222]
[1735669556452,0.0347,94099.0,94080.0,0.01290222]
[1735669556453,0.0665,94098.0,94084.0,0.08717061]
[1735669556777,0.0665,94098.0,94080.0,0.08717061]
[1735669556778,0.053228,94072.0,94070.0,0.053228]
[1735669557051,0.0665,94071.0,94070.0,0.053228]
[1735669557255,0.480528,94071.0,94070.0,0.053228]
[1735669557850,0.480528,94071.0,94070.0,0.055228]
[1735669558357,0.4273,94071.0,94070.0,0.055228]
[1735669559154,0.480528,94071.0,94070.0,0.055228]
[1735669559362,0.4273,94071.0,94070.0,0.055228]
[1735669559656,0.3608,94082.0,94081.0,0.053222]
[1735669560452,0.414022,94082.0,94081.0,0.053222]
[1735669560647,0.3608,94082.0,94070.0,0.004]
[1735669560843,0.3608,94082.0,94073.0,0.053227]
[1735669560844,0.3608,94074.0,94073.0,0.053227]
[1735669563160,0.3608,94074.0,94060.0,0.00159474]
[1735669563456,0.053237,94056.0,94054.0,0.053237]
[1735669563656,0.053237,94056.0,94055.0,0.053237]
[1735669564363,0.053239,94052.0,94051.0,0.053239]
[1735669564663,0.053236,94057.0,94056.0,0.053236]
[1735669565854,0.0329,94060.0,94030.0,0.053251]
[1735669565855,0.053236,94056.0,94030.0,0.053251]
[1735669566059,0.3608,94038.0,94035.0,0.053248]
[1735669566254,0.3608,94038.0,94037.0,0.053247]
[1735669566462,0.3608,94047.0,94046.0,0.053242]
[1735669566757,0.0339,94055.0,94046.0,0.053242]
[1735669566959,0.0339,94055.0,94054.0,0.053238]
[1735669567165,0.04677132,94055.0,94054.0,0.053238]
[1735669568053,0.36584001,94057.0,94056.0,0.053236]
[1735669568273,0.004,94057.0,94056.0,0.414036]
[1735669568448,0.006,94057.0,94056.0,0.414036]
[1735669568857,0.053219,94087.0,94061.0,0.053234]
[1735669569064,0.0347,94081.0,94080.0,0.053223]
[1735669570963,0.0347,94081.0,94069.0,0.053229]
[1735669570964,0.087922,94081.0,94060.0,0.08717061]
[1735669571259,0.087922,94081.0,94061.0,0.00959469]
[1735669571260,0.053233,94062.0,94061.0,0.00959469]
[1735669571965,0.053233,94062.0,94061.0,0.06282869]
[1735669572150,0.053233,94062.0,94061.0,0.06582869]
[1735669572357,0.053233,94062.0,94061.0,0.05782869]
[1735669572660,0.3608,94066.0,94065.0,0.053231]
[1735669572855,0.414031,94066.0,94065.0,0.053231]
[1735669573664,0.3608,94066.0,94065.0,0.053231]
[1735669573967,0.3608,94066.0,94065.0,0.056231]
[1735669575660,0.3608,94066.0,94065.0,0.054231]
[1735669579468,0.414031,94066.0,94065.0,0.001]
[1735669580463,0.414031,94066.0,94061.0,0.00159469]
[1735669580464,0.053233,94062.0,94061.0,0.00159469]
[1735669580765,0.053233,94062.0,94061.0,0.05482869]
[1735669581972,0.416031,94066.0,94065.0,0.053231]
[1735669582473,0.3608,94075.0,94074.0,0.053226]
[1735669582865,0.3608,94075.0,94074.0,1.553226]
[1735669583269,0.414021,94084.0,94083.0,0.053221]
[1735669584073,0.3608,94084.0,94083.0,0.053221]
[1735669584871,0.415021,94084.0,94083.0,0.053221]
[1735669585266,0.3618,94084.0,94083.0,0.053221]
[1735669585467,0.3608,94084.0,94083.0,0.053221]
[1735669585667,0.3618,94084.0,94083.0,0.053221]
[1735669587967,0.3608,94084.0,94070.0,0.18963431]
[1735669588163,0.3608,94071.0,94070.0,0.18963431]
[1735669588367,0.414028,94071.0,94070.0,0.18963431]
[1735669588568,0.053228,94070.0,94069.0,0.053229]
[1735669590773,0.053228,94070.0,94069.0,0.060229]
[1735669590976,0.06557411,94070.0,94069.0,0.009]
[1735669591275,0.053233,94062.0,94054.0,0.053237]
[1735669591577,0.414033,94062.0,94054.0,0.053237]
[1735669591777,0.414033,94062.0,94056.0,0.053236]
[1735669592271,0.414033,94062.0,94047.0,0.37321115]
[1735669592680,0.414033,94062.0,94049.0,0.05324]
[1735669592985,0.3608,94054.0,94049.0,0.05324]
[1735669593967,0.3608,94054.0,94053.0,0.053238]
[1735669595268,0.3608,94054.0,94053.0,0.058238]
[1735669595667,0.001,94062.0,94053.0,0.005]
[1735669595971,0.001,94062.0,94061.0,0.053234]
[1735669596369,0.3608,94063.0,94057.0,0.0328]
[1735669596677,0.414028,94071.0,94062.0,0.053233]
[1735669597869,0.414028,94071.0,94070.0,0.053228]
[1735669598681,0.42648025,94071.0,94070.0,0.053228]
[1735669600178,0.42648025,94071.0,94070.0,0.058228]
[1735669600379,0.37325225,94071.0,94070.0,0.058228]
[1735669602684,0.3608,94071.0,94070.0,0.058228]
[1735669603282,0.414022,94082.0,94081.0,0.053222]
[1735669604072,0.42651981,94082.0,94081.0,0.053222]
[1735669604276,0.053228,94076.0,94075.0,0.053225]
[1735669604575,0.3608,94081.0,94075.0,0.053225]
[1735669604773,0.38353065,94081.0,94080.0,0.053223]
[1735669604967,0.48236388,94081.0,94080.0,0.053223]
[1735669605174,0.53558588,94081.0,94080.0,0.053223]
[1735669605577,0.053225,94076.0,94075.0,0.053225]
[1735669605881,0.48236388,94081.0,94063.0,0.3608]
[1735669605882,0.02273065,94080.0,94063.0,0.3608]
[1735669606089,0.3608,94071.0,94070.0,0.053228]
[1735669607273,0.414028,94071.0,94070.0,0.053228]
[1735669607677,0.414028,94071.0,94070.0,0.058228]
[1735669609381,0.414028,94071.0,94070.0,0.005]
[1735669609582,0.053236,94056.0,94044.0,0.3927]
[1735669609783,0.053243,94049.0,94048.0,0.05324]
[1735669610485,0.053243,94045.0,94044.0,0.053803]
[1735669610685,0.053243,94045.0,94044.0,0.053243]
[1735669611980,0.3608,94046.0,94032.0,0.0317]
[1735669612179,0.053243,94044.0,94038.0,0.053246]
[1735669612375,0.053252,94028.0,94027.0,0.053253]
[1735669612582,0.3608,94028.0,94027.0,0.053253]
[1735669613585,0.3618,94028.0,94027.0,0.059253]
[1735669613992,0.3628,94028.0,94027.0,0.068253]
[1735669614376,0.416052,94028.0,94027.0,0.068253]
[1735669615374,0.416052,94028.0,94027.0,0.015]
[1735669615682,0.3628,94028.0,94007.0,0.053264]
[1735669615886,0.3608,94018.0,94008.0,1.50159543]
[1735669616085,0.3608,94018.0,94009.0,0.053263]
[1735669616086,0.053262,94010.0,94009.0,0.053263]
[1735669616879,0.3608,94018.0,94008.0,0.00159543]
[1735669617081,0.053263,94009.0,94008.0,0.00159543]
[1735669617285,0.053264,94008.0,94007.0,0.053264]
[1735669619079,0.046267,94002.0,94001.0,0.00056]
[1735669619277,0.407067,94002.0,93983.0,0.0335]
[1735669619483,0.407067,94002.0,93982.0,0.8378]
[1735669619484,0.053274,93989.0,93982.0,0.36136]
[1735669619685,0.047274,93989.0,93982.0,0.3608]
[1735669620594,0.047274,93989.0,93988.0,0.00559554]
[1735669620794,0.047274,93989.0,93988.0,0.004]
[1735669621094,0.048274,93989.0,93988.0,0.01]
[1735669621490,0.053286,93969.0,93968.0,0.00159623]
[1735669621796,0.414086,93969.0,93968.0,0.00159623]
[1735669622581,0.415086,93969.0,93968.0,0.00159623]
[1735669623594,0.416086,93969.0,93968.0,0.00259623]
[1735669625091,0.415086,93969.0,93968.0,0.00259623]
[1735669625291,0.416086,93969.0,93968.0,0.00259623]
[1735669626096,0.415086,93969.0,93968.0,0.00259623]
[1735669626403,0.053293,93956.0,93953.0,0.053294]
[1735669627200,0.42723104,93969.0,93953.0,0.053294]
[1735669627201,0.053294,93955.0,93953.0,0.053294]
[1735669627703,0.053294,93955.0,93954.0,0.053294]
[1735669628495,0.3608,93959.0,93954.0,0.053294]
[1735669628695,0.053294,93955.0,93954.0,0.053294]
[1735669629099,0.054294,93955.0,93954.0,0.053294]
[1735669629304,0.001,93955.0,93944.0,0.0348]
[1735669629601,0.0533,93944.0,93943.0,0.00056]
[1735669629791,0.053304,93937.0,93934.0,0.00159661]
[1735669629991,0.053305,93935.0,93934.0,0.00159661]
[1735669630907,0.053305,93935.0,93934.0,0.05490261]
[1735669631292,0.053305,93935.0,93934.0,0.00159661]
[1735669632507,0.054305,93935.0,93934.0,0.00159661]
[1735669632712,0.06760797,93935.0,93934.0,0.00159661]
[1735669634507,0.06760797,93935.0,93920.0,0.053313]
[1735669634711,0.053312,93923.0,93920.0,0.053313]
[1735669635103,0.448841,93930.0,93920.0,0.053313]
[1735669635303,0.053319,93911.0,93907.0,0.00056]
[1735669635500,0.053321,93906.0,93905.0,0.053322]
[1735669635700,0.05845502,93920.0,93911.0,0.053319]
[1735669636211,0.3608,93921.0,93911.0,0.053319]
[1735669636508,0.053318,93912.0,93911.0,0.053319]
[1735669637712,0.054318,93912.0,93911.0,0.053319]
[1735669638303,0.054318,93912.0,93911.0,1.553319]
[1735669638905,0.055318,93912.0,93911.0,1.554319]
[1735669639325,0.055318,93912.0,93911.0,0.054319]
[1735669639909,0.055318,93912.0,93911.0,1.554319]
[1735669640118,0.055318,93912.0,93911.0,0.001]
[1735669641207,0.054318,93912.0,93904.0,0.053322]
[1735669641408,0.053322,93905.0,93904.0,0.053322]
[1735669642615,0.053322,93908.0,93907.0,0.05332]
[1735669643615,0.01272005,93912.0,93911.0,0.053319]
[1735669644009,0.01172005,93912.0,93911.0,0.053319]
[1735669644217,0.41515801,93913.0,93912.0,0.053318]
[1735669644411,0.414118,93913.0,93912.0,0.053318]
[1735669645119,0.4261817,93913.0,93912.0,0.053318]
[1735669646017,0.4271817,93913.0,93912.0,0.053318]
[1735669646911,0.053323,93905.0,93904.0,0.053322]
[1735669647217,0.24941818,93905.0,93903.0,0.18965186]
[1735669647415,0.053323,93904.0,93903.0,0.18965186]
[1735669648940,0.053324,93902.0,93901.0,0.0549212]
[1735669650444,0.053324,93902.0,93901.0,0.0015972]
[1735669650648,0.054324,93902.0,93901.0,0.0015972]
[1735669651038,0.055324,93902.0,93901.0,0.0015972]
[1735669651940,0.054324,93902.0,93901.0,0.0015972]
[1735669652648,0.053324,93902.0,93901.0,0.0015972]
[1735669652845,0.053324,93902.0,93893.0,0.24126264]
[1735669652846,0.053328,93894.0,93893.0,0.24126264]
[1735669653142,0.414128,93894.0,93893.0,0.24126264]
[1735669653749,0.414128,93894.0,93885.0,0.053333]
[1735669654036,0.414133,93886.0,93885.0,0.053333]
[1735669654240,0.053339,93876.0,93875.0,0.053339]
[1735669655321,0.05334,93874.0,93873.0,1.50064]
[1735669655511,0.05334,93874.0,93873.0,1.5]
[1735669655916,0.05334,93874.0,93873.0,1.55334]
[1735669656719,0.01293293,93876.0,93875.0,0.053339]
[1735669657127,0.06627093,93876.0,93875.0,0.053339]
[1735669657420,0.06627093,93876.0,93873.0,1.50064]
[1735669657421,0.05334,93874.0,93873.0,1.50064]
[1735669657624,0.05434,93874.0,93873.0,1.5]
[1735669657824,0.05434,93874.0,93873.0,1.55334]
[1735669659414,0.05534,93874.0,93873.0,1.55334]
[1735669659818,0.05534,93874.0,93873.0,0.05334]
[1735669660025,0.05434,93874.0,93873.0,0.05334]
[1735669660813,0.05534,93874.0,93873.0,0.05334]
[1735669662319,0.053341,93872.0,93871.0,0.3608]
[1735669663127,0.053341,93872.0,93870.0,0.00159789]
[1735669663128,0.053341,93871.0,93870.0,0.00159789]
[1735669664817,0.054341,93871.0,93870.0,0.00159789]
[1735669665125,0.054341,93871.0,93862.0,0.37986372]
[1735669665126,0.053346,93863.0,93862.0,0.37930372]
[1735669665321,0.414146,93863.0,93862.0,0.37930372]
[1735669665625,0.414146,93863.0,93852.0,1.5]
[1735669665626,0.053346,93862.0,93852.0,1.553912]
[1735669665822,0.414146,93863.0,93852.0,1.553352]
[1735669665823,0.053352,93853.0,93852.0,1.553352]
[1735669666523,0.053353,93850.0,93849.0,0.37930372]
[1735669667131,0.053357,93844.0,93843.0,0.3809019]
[1735669667540,0.39091818,93853.0,93843.0,0.3809019]
[1735669667748,0.40278043,93853.0,93844.0,0.053356]
[1735669667949,0.001,93850.0,93849.0,0.053354]
[1735669668153,0.00104001,93853.0,93849.0,0.053354]
[1735669668363,0.053339,93875.0,93874.0,0.053338]
[1735669668856,0.37380313,93881.0,93868.0,0.3608]
[1735669669049,0.053338,93878.0,93868.0,0.3608]
[1735669669248,0.053338,93878.0,93874.0,0.053339]
[1735669669553,0.053338,93878.0,93877.0,0.053338]
[1735669669756,0.00076,93881.0,93877.0,0.3608]
[1735669670054,0.053324,93902.0,93896.0,0.053327]
[1735669670248,0.053325,93901.0,93896.0,0.053327]
[1735669670456,0.25552814,93904.0,93900.0,0.053325]
[1735669670867,0.25552814,93904.0,93903.0,0.053323]
[1735669671075,0.01345532,93908.0,93907.0,0.053321]
[1735669672550,0.0025979,93908.0,93907.0,0.053321]
[1735669672753,0.001,93908.0,93907.0,0.053321]
[1735669672952,0.3608,93925.0,93922.0,0.053312]
[1735669673257,0.053312,93923.0,93922.0,0.053312]
[1735669674555,0.055312,93923.0,93922.0,0.053312]
[1735669675457,0.058312,93923.0,93922.0,0.053312]
[1735669675661,0.005,93923.0,93922.0,0.053312]
[1735669676155,0.007,93923.0,93912.0,0.3608]
[1735669676351,0.007,93923.0,93913.0,0.053317]
[1735669676753,0.008,93923.0,93913.0,0.053317]
[1735669676953,0.053316,93915.0,93913.0,0.053317]
[1735669678333,0.055316,93915.0,93913.0,0.053317]
[1735669678539,0.053317,93914.0,93913.0,0.053317]
[1735669680231,0.055317,93914.0,93913.0,0.053317]
[1735669681134,0.056317,93914.0,93913.0,0.053317]
[1735669681731,0.003,93914.0,93901.0,0.053324]
[1735669681934,0.053322,93905.0,93902.0,0.053323]
[1735669682129,0.034,93913.0,93900.0,0.08732799]
[1735669682331,0.053323,93904.0,93903.0,0.053323]
[1735669682538,0.0146961,93914.0,93894.0,0.44812799]
[1735669682741,0.0146961,93914.0,93906.0,0.3608]
[1735669682943,0.003,93914.0,93913.0,0.053317]
[1735669683449,0.001,93914.0,93913.0,0.053317]
[1735669684134,0.19114185,93928.0,93927.0,0.053309]
[1735669685141,0.01219768,93931.0,93921.0,0.3608]
[1735669685342,0.053308,93930.0,93929.0,0.053308]
[1735669686130,0.19114185,93936.0,93921.0,0.3608]
[1735669686342,0.3608,93938.0,93930.0,0.3608]
[1735669686643,0.053303,93939.0,93938.0,0.053303]
[1735669686839,0.2033551,93941.0,93940.0,0.053302]
[1735669687839,0.01221325,93941.0,93940.0,0.053302]
[1735669688041,0.3608,93948.0,93940.0,0.053302]
[1735669688245,0.0691,93965.0,93947.0,0.3608]
[1735669688538,0.053292,93957.0,93956.0,0.3608]
[1735669689241,0.053292,93957.0,93956.0,0.414093]
[1735669690836,0.003,93957.0,93956.0,0.3608]
[1735669691143,0.01,93957.0,93956.0,0.414093]
[1735669691454,0.003,93957.0,93956.0,0.414093]
[1735669691643,0.007,93957.0,93956.0,0.414093]
[1735669692135,0.056292,93957.0,93956.0,0.414093]
[1735669692342,0.003,93957.0,93956.0,0.414093]
[1735669693447,0.001,93957.0,93956.0,0.414093]
[1735669695943,0.054292,93957.0,93956.0,0.3608]
[1735669698847,0.001,93957.0,93956.0,0.414093]
[1735669700047,0.053277,93986.0,93956.0,0.67554405]
[1735669700351,0.053277,93986.0,93984.0,0.414077]
[1735669700547,0.27627582,93985.0,93984.0,0.414077]
[1735669700854,0.01518513,93985.0,93984.0,0.414077]
[1735669701050,0.22299882,93993.0,93984.0,0.3608]
[1735669701251,0.05487076,93989.0,93988.0,0.053275]
[1735669702245,0.053277,93985.0,93984.0,0.3608]
[1735669703347,0.053282,93976.0,93975.0,0.08732799]
[1735669703546,0.053282,93975.0,93974.0,0.053282]
[1735669705054,0.059282,93975.0,93974.0,0.053282]
[1735669705244,0.063282,93975.0,93974.0,0.053282]
[1735669706756,0.01,93975.0,93974.0,0.053282]
[1735669707451,0.063282,93975.0,93974.0,0.053282]
[1735669708550,0.07803977,93975.0,93974.0,0.053282]
[1735669709148,0.02475777,93975.0,93974.0,0.053282]
[1735669710054,0.01,93975.0,93974.0,0.053282]
[1735669710256,0.22299882,93996.0,93988.0,0.053275]
[1735669710449,0.22299882,93996.0,93995.0,0.053271]
[1735669710648,0.22299882,93996.0,93995.0,1.553271]
[1735669711053,0.25417576,94003.0,93995.0,1.553271]
[1735669711259,0.16070466,94003.0,94002.0,0.414067]
[1735669711758,0.01494467,94018.0,94014.0,0.05326]
[1735669711959,0.053259,94016.0,94014.0,0.41406]
[1735669712156,0.0548561,94015.0,94014.0,0.41406]
[1735669713256,0.0548561,94015.0,94005.0,0.08732799]
[1735669713458,0.053265,94007.0,94005.0,0.08732799]
[1735669713658,0.053266,94003.0,94002.0,0.3608]
[1735669714858,0.053266,94003.0,94002.0,0.414067]
[1735669715557,0.002,94007.0,94006.0,0.053265]
[1735669715763,0.001,94007.0,94006.0,0.053265]
[1735669715955,0.0689673,94007.0,94006.0,0.053265]
[1735669716155,0.054264,94007.0,94006.0,0.053265]
[1735669716360,0.053264,94007.0,94006.0,0.053265]
[1735669717565,0.055264,94007.0,94006.0,0.053265]
[1735669718764,0.054264,94007.0,94006.0,0.053265]
[1735669718964,0.055264,94007.0,94006.0,0.053265]
[1735669720761,0.054264,94007.0,94006.0,0.053265]
[1735669720960,0.055264,94007.0,94006.0,0.053265]
[1735669721871,0.002,94007.0,94006.0,0.053265]
[1735669723363,0.001,94007.0,94006.0,0.053265]
[1735669724670,0.002,94007.0,94006.0,0.053265]
[1735669725660,0.055264,94007.0,94006.0,0.053265]
[1735669733571,0.002,94007.0,94006.0,0.053265]
[1735669736376,0.001596,94022.0,94003.0,0.0382]
[1735669736676,0.053247,94038.0,94021.0,0.3608]
[1735669736892,0.01489414,94038.0,94037.0,0.053247]
[1735669737071,0.03370064,94042.0,94034.0,0.3608]
[1735669737272,0.4038446,94040.0,94039.0,0.053246]